bitfinex/quotes_ETHUSD_20220218
["timestamp","ask_amount","ask_price","bid_price","bid_amount"]
[1645158591824,0.75195179,2902.3,2902.0,0.8611947]
[1645158592021,0.75195179,2902.3,2902.1,0.70975371]
[1645158593255,0.75195179,2902.3,2902.1,1.57137371]
[1645158593454,0.75195179,2902.3,2902.2,0.70975371]
[1645158594057,0.75195179,2902.3,2902.1,0.70975371]
[1645158594660,0.75195179,2902.3,2902.2,0.8616]
[1645158594859,0.75195179,2902.3,2902.2,1.57135371]
[1645158595664,0.75218686,2902.3,2902.2,5.07135371]
[1645158595864,0.71782819,2902.4,2902.3,0.86129]
[1645158596063,0.71782819,2902.4,2902.3,5.56758477]
[1645158596264,0.71782819,2902.4,2902.3,2.06758477]
[1645158596912,1.47087542,2902.4,2902.3,2.06758477]
[1645158597519,1.47087542,2902.4,2902.3,1.20629477]
[1645158598114,1.47087542,2902.4,2902.3,0.71129477]
[1645158598313,1.47087542,2902.4,2902.3,0.00154106]
[1645158598815,4.01697562,2902.4,2902.3,0.00154106]
[1645158599015,2.33261542,2902.4,2902.3,0.00154106]
[1645158600859,27.16539896,2902.4,2902.3,0.00154106]
[1645158601056,27.16539896,2902.4,2902.3,6.424e-05]
[1645158601057,24.13787871,2902.4,2902.3,6.424e-05]
[1645158601656,3.95787871,2902.4,2902.3,6.424e-05]
[1645158602060,3.46174468,2902.4,2902.3,6.424e-05]
[1645158602864,3.28964468,2902.4,2902.3,6.424e-05]
[1645158605312,2.42790468,2902.4,2902.3,6.424e-05]
[1645158607959,1.77087542,2902.4,2902.3,6.424e-05]
[1645158608357,1.47087542,2902.4,2902.3,6.424e-05]
[1645158609155,2.4638971,2902.4,2902.3,0.51953218]
[1645158609757,3.12092636,2902.4,2902.3,0.51953218]
[1645158610661,3.42092636,2902.4,2902.3,0.51953218]
[1645158610861,2.7638971,2902.4,2902.3,0.51953218]
[1645158611262,1.72358,2902.2,2901.9,0.00285498]
[1645158611472,0.65702926,2902.0,2901.9,0.00285498]
[1645158611711,26.61370425,2902.0,2901.6,0.00327513]
[1645158611916,26.61370425,2902.0,2901.3,0.0114224]
[1645158611917,1.90621052,2901.9,2901.3,0.0114224]
[1645158612118,20.83632938,2901.6,2901.3,0.0114224]
[1645158612320,20.83632938,2901.6,2900.4,0.00327513]
[1645158612321,20.18,2901.4,2900.4,0.00327513]
[1645158612522,20.18,2901.0,2900.4,0.00327513]
[1645158612723,20.18,2900.8,2900.1,0.66373727]
[1645158612917,20.18,2900.6,2900.2,0.66373727]
[1645158613115,20.93304723,2900.5,2900.0,0.00327513]
[1645158613317,20.93304723,2900.5,2899.8,0.00327513]
[1645158613318,20.18,2900.2,2899.8,0.00327513]
[1645158613515,21.30958565,2900.2,2899.8,0.00327513]
[1645158613720,0.86265,2900.0,2899.8,0.00327513]
[1645158613920,3.5,2899.9,2899.8,0.00327513]
[1645158614320,23.68,2899.9,2899.8,0.00327513]
[1645158614520,23.98,2899.9,2899.5,0.00327513]
[1645158614721,24.28,2899.9,2899.5,0.00327513]
[1645158614919,0.86265,2899.6,2899.1,0.00327513]
[1645158615119,0.86265,2899.6,2898.9,0.66214586]
[1645158615323,1.01754522,2899.1,2898.9,0.66214586]
[1645158615564,1.01754522,2899.1,2898.9,0.00327513]
[1645158616164,1.01754522,2899.1,2898.9,0.00637281]
[1645158616366,0.86267,2899.4,2898.9,0.00637281]
[1645158616367,0.86267,2899.2,2898.9,0.00637281]
[1645158616564,5.22534,2899.6,2898.9,0.00637281]
[1645158616565,0.86264,2899.5,2898.9,0.00637281]
[1645158616970,0.86264,2899.5,2898.9,0.66524354]
[1645158617170,0.86264,2899.5,2898.9,0.66214586]
[1645158617369,0.95599076,2899.3,2899.1,0.00309755]
[1645158618370,0.95599076,2899.3,2898.9,0.00327513]
[1645158618569,0.95599076,2899.3,2899.1,0.00309755]
[1645158618969,3.5,2899.8,2899.1,0.00309755]
[1645158619412,8.25716,2899.9,2898.9,0.00327513]
[1645158619711,3.5,2899.8,2899.3,0.00309739]
[1645158620112,5.30966,2899.9,2899.3,0.00309739]
[1645158620113,0.96488365,2899.6,2899.3,0.00309739]
[1645158620614,0.96488365,2899.6,2899.1,0.00327513]
[1645158621013,0.96488365,2899.6,2899.3,0.00304288]
[1645158621815,0.96488365,2899.6,2898.9,1.11522566]
[1645158622214,0.96488365,2899.6,2899.3,0.00304288]
[1645158623062,1.82744365,2899.6,2898.9,0.00327513]
[1645158623460,1.82744365,2899.6,2899.3,0.00304288]
[1645158624263,1.82744365,2899.6,2898.9,0.00327513]
[1645158624463,2.69003365,2899.6,2898.9,0.00327513]
[1645158624663,2.69003365,2899.6,2899.3,0.00304856]
[1645158625569,0.86266,2899.5,2898.9,0.00327513]
[1645158625768,6.19003365,2899.6,2899.3,0.00304856]
[1645158625968,2.69003365,2899.6,2899.3,0.00304856]
[1645158626812,0.99828962,2899.1,2898.9,0.00327513]
[1645158627013,0.99828962,2899.1,2898.9,0.01547118]
[1645158627914,0.99828962,2899.1,2898.9,0.00327513]
[1645158628117,3.5,2899.0,2898.9,0.0063234]
[1645158629118,3.5,2899.0,2898.9,0.00327513]
[1645158629415,3.5,2899.0,2897.8,0.13819997]
[1645158629416,5.8258,2899.0,2898.8,0.0030483]
[1645158629616,3.5,2898.9,2898.8,0.0030483]
[1645158629814,3.8,2898.9,2898.8,0.0030483]
[1645158630014,3.5,2898.9,2898.8,0.0030483]
[1645158630214,3.5,2898.9,2898.0,0.00327513]
[1645158630461,1.10693858,2898.4,2898.0,0.00327513]
[1645158630664,4.36289,2898.6,2898.3,0.01219529]
[1645158630868,0.86289,2898.6,2898.3,0.01219529]
[1645158631066,3.5,2898.5,2898.3,0.01219529]
[1645158631664,1.16289,2898.6,2898.0,0.00327513]
[1645158631866,4.36289,2898.5,2898.3,0.00304872]
[1645158632266,0.86289,2898.5,2898.3,0.00304872]
[1645158632474,0.84132303,2898.4,2898.3,0.00304872]
[1645158632667,0.84132303,2898.4,2898.0,0.00327513]
[1645158633167,0.84132303,2898.4,2898.3,0.00304872]
[1645158633572,22.18422303,2898.4,2898.3,0.00304872]
[1645158633770,2.00422303,2898.4,2898.3,0.00304872]
[1645158633969,2.00422303,2898.4,2897.3,0.00327513]
[1645158634210,0.9294406,2897.9,2897.8,0.01219683]
[1645158634610,1.7261,2898.1,2897.8,0.01219683]
[1645158634812,0.86313,2898.0,2897.8,0.01219683]
[1645158635010,3.5,2898.8,2897.8,0.01219683]
[1645158635211,3.5,2898.8,2897.3,0.00327513]
[1645158635410,3.5,2898.8,2897.8,0.00283832]
[1645158635810,1.11349049,2898.6,2898.0,1.03597386]
[1645158636015,4.61349049,2898.6,2898.1,0.00327513]
[1645158636213,1.11349049,2898.6,2898.1,0.00327513]
[1645158636410,4.61349049,2898.6,2898.1,0.00327513]
[1645158636612,1.11349049,2898.6,2898.2,0.00283806]
[1645158637015,0.86289,2898.5,2898.2,0.00283806]
[1645158637214,0.3,2898.4,2898.2,0.00283806]
[1645158637615,1.41349049,2898.6,2897.3,3.50327513]
[1645158637816,1.41349049,2898.6,2898.2,0.00283809]
[1645158638258,1.11349049,2898.6,2898.2,0.00283809]
[1645158638461,1.41349049,2898.6,2898.2,0.00283809]
[1645158638662,1.41349049,2898.6,2897.8,0.00327513]
[1645158639058,1.41349049,2898.6,2898.3,0.00284507]
[1645158639258,1.11349049,2898.6,2898.3,0.00284507]
[1645158639859,1.11349049,2898.6,2897.8,0.01465712]
[1645158639860,1.11349049,2898.6,2897.8,0.00327513]
[1645158640258,1.11349049,2898.6,2898.3,0.00285698]
[1645158641060,1.11349049,2898.6,2897.8,0.86607513]
[1645158641465,1.11349049,2898.6,2898.3,0.00285698]
[1645158642321,1.11349049,2898.6,2897.6,0.00327513]
[1645158642620,2.83946049,2898.6,2898.3,0.00285587]
[1645158642819,0.86315,2898.5,2898.3,0.00285587]
[1645158643415,1.72603,2898.5,2898.3,0.00285587]
[1645158643616,0.93634533,2897.8,2897.6,0.00327513]
[1645158643820,1.79947533,2897.8,2897.6,0.00327513]
[1645158644014,1.79947533,2897.8,2897.4,0.00327513]
[1645158644216,1.79947533,2897.8,2897.6,0.00327513]
[1645158644416,1.79947533,2897.8,2897.4,0.57044697]
[1645158644417,1.79947533,2897.8,2897.4,0.5737221]
[1645158645016,1.79947533,2897.8,2897.5,0.00285508]
[1645158645215,0.86313,2897.7,2897.5,0.57330205]
[1645158645460,0.86313,2897.7,2897.6,0.00327513]
[1645158645862,0.86313,2897.7,2897.4,0.00327513]
[1645158646063,0.86313,2897.7,2897.4,0.57394774]
[1645158646260,0.86313,2897.7,2897.5,0.0028552]
[1645158646465,0.93634533,2897.8,2897.5,0.0028552]
[1645158647065,0.93634533,2897.8,2897.3,0.57067714]
[1645158647066,0.93634533,2897.8,2897.4,0.00327513]
[1645158647266,0.93634533,2897.8,2897.4,0.57395227]
[1645158647465,0.93634533,2897.8,2897.5,0.00285538]
[1645158648065,0.93634533,2897.8,2897.5,0.00613051]
[1645158648265,0.93634533,2897.8,2897.5,0.00327513]
[1645158648466,0.93634533,2897.8,2897.3,0.57421919]
[1645158648666,0.93634533,2897.8,2897.5,0.00285538]
[1645158648867,1.89842,2898.4,2897.5,0.00285538]
[1645158649073,1.1656,2899.2,2897.6,0.495]
[1645158649074,6.5282,2899.1,2897.6,0.495]
[1645158649318,2.9564,2899.5,2897.7,4.07449605]
[1645158649515,3.1868,2899.7,2897.8,1.06949605]
[1645158649813,3.1868,2899.7,2898.2,0.00285496]
[1645158649814,0.87011059,2899.6,2898.2,0.00285496]
[1645158650013,0.86269,2899.4,2898.4,1.0109725]
[1645158650214,1.89777,2899.6,2898.6,0.86266]
[1645158650415,1.89777,2899.6,2898.7,0.00327513]
[1645158650616,1.89777,2899.6,2898.5,0.00327513]
[1645158650913,1.89777,2899.6,2899.0,0.00166296]
[1645158651116,2.04167898,2899.5,2899.0,0.00166296]
[1645158651314,1.72541,2899.4,2899.0,0.00166296]
[1645158651718,0.00034747,2898.9,2898.6,0.00665284]
[1645158651920,0.00034747,2898.9,2898.5,0.00327513]
[1645158652320,0.00034747,2898.9,2898.5,1.72861513]
[1645158652520,1.09083441,2898.8,2898.6,0.00327513]
[1645158653158,1.09083441,2898.8,2898.4,0.00327513]
[1645158653358,1.09083441,2898.8,2898.5,0.86265]
[1645158653559,1.09083441,2898.8,2898.6,0.00327513]
[1645158654559,1.09083441,2898.8,2898.6,0.0065138]
[1645158655661,1.09083441,2898.8,2898.6,0.86594513]
[1645158655861,1.09083441,2898.8,2898.6,0.86590867]
[1645158656060,1.09083441,2898.8,2898.6,0.0065138]
[1645158656263,1.09083441,2898.8,2898.6,0.00323867]
[1645158656714,1.09083441,2898.8,2898.6,0.00327513]
[1645158656919,1.09083441,2898.8,2898.6,0.0065138]
[1645158657116,1.09083441,2898.8,2898.7,0.57569593]
[1645158657316,1.09083441,2898.8,2898.7,0.57897106]
[1645158658317,0.00034747,2898.9,2898.7,0.57897106]
[1645158658516,0.00034747,2898.9,2898.8,0.00327513]
[1645158658717,0.00034747,2898.9,2898.8,0.57897106]
[1645158659317,0.95699748,2898.9,2898.8,0.00327513]
[1645158659521,0.95699748,2898.9,2898.7,0.00323858]
[1645158659918,0.95699748,2898.9,2898.7,0.58220964]
[1645158660119,0.95699748,2898.9,2898.8,0.57569593]
[1645158660320,0.95699748,2898.9,2898.8,0.57897106]
[1645158660563,0.95699748,2898.9,2898.8,0.00327513]
[1645158660761,0.95699748,2898.9,2898.8,0.57569593]
[1645158660960,0.95699748,2898.9,2898.7,0.00323861]
[1645158661165,0.95699748,2898.9,2898.7,0.58220967]
[1645158661373,0.00034747,2898.9,2898.8,1.43832593]
[1645158661771,0.00034747,2898.9,2898.8,2.23332593]
[1645158661969,0.00034747,2898.9,2898.8,2.87322593]
[1645158662369,0.00034747,2898.9,2898.8,3.87322593]
[1645158662771,0.00034747,2898.9,2898.8,4.17322593]
[1645158662973,0.00034747,2898.9,2898.8,1.71059593]
[1645158663170,0.00034747,2898.9,2898.8,1.07069593]
[1645158664714,0.00034747,2898.9,2898.8,0.57569593]
[1645158666411,0.00034747,2898.9,2898.8,1.57569593]
[1645158666612,0.00034747,2898.9,2898.8,2.07069593]
[1645158667015,0.00034747,2898.9,2898.8,2.37069593]
[1645158668773,0.00034747,2898.9,2898.8,2.07069593]
[1645158668975,0.00034747,2898.9,2898.8,1.07069593]
[1645158669375,0.00034747,2898.9,2898.8,0.57569593]
[1645158669878,0.00034747,2898.9,2898.8,0.00378957]
[1645158670276,1.09723131,2898.9,2898.8,0.57569593]
[1645158670477,1.09723131,2898.9,2898.8,0.00378957]
[1645158670675,1.09723131,2898.9,2898.8,0.57569593]
[1645158670875,1.09723131,2898.9,2898.8,0.00378957]
[1645158671177,1.09723131,2898.9,2898.7,0.57569593]
[1645158671377,1.09723131,2898.9,2898.8,0.57569593]
[1645158671576,1.09723131,2898.9,2898.8,0.5794855]
[1645158672427,0.00034747,2898.9,2898.8,0.5794855]
[1645158672822,0.00034747,2898.9,2898.8,2.3045655]
[1645158674823,0.88471846,2899.4,2899.0,0.86254]
[1645158675028,0.88471846,2899.4,2899.1,0.57569593]
[1645158675665,0.88471846,2899.4,2899.2,0.57569593]
[1645158675866,0.88471846,2899.4,2899.3,0.57569593]
[1645158676070,0.88471846,2899.4,2899.0,0.5794855]
[1645158676267,0.88471846,2899.4,2899.1,0.57569593]
[1645158677472,1.528,2899.9,2899.1,0.57569593]
[1645158677676,0.88548921,2899.8,2899.1,0.57569593]
[1645158678072,0.88548921,2899.7,2899.1,0.57569593]
[1645158678272,1.13094146,2899.3,2899.1,0.57569593]
[1645158678672,0.88526156,2899.2,2899.1,0.57569593]
[1645158678974,0.88526395,2899.2,2899.1,0.57569593]
[1645158679623,1.13094146,2899.3,2899.0,0.57569593]
[1645158679822,1.13094146,2899.3,2899.1,0.57569593]
[1645158680022,1.13094146,2899.3,2899.2,0.57569593]
[1645158680226,2.01653646,2899.3,2899.2,0.57569593]
[1645158680422,2.01653646,2899.3,2899.0,0.57569593]
[1645158680621,1.13094146,2899.3,2899.1,0.57569593]
[1645158680822,1.13094146,2899.3,2898.9,0.00826809]
[1645158680823,1.13094146,2899.3,2899.2,0.57569593]
[1645158681020,2.01657236,2899.3,2899.2,0.57569593]
[1645158681223,2.01657236,2899.3,2899.0,0.57569593]
[1645158681421,1.13094146,2899.3,2899.1,0.57569593]
[1645158681620,1.13094146,2899.3,2899.2,0.57569593]
[1645158681824,2.01663701,2899.3,2899.0,0.57569593]
[1645158682027,1.13094146,2899.3,2899.1,0.57569593]
[1645158682226,1.13094146,2899.3,2899.2,0.57569593]
[1645158682426,2.01677355,2899.3,2899.0,0.57569593]
[1645158682626,0.8626,2899.6,2899.0,0.57569593]
[1645158682830,0.88585345,2899.5,2899.0,0.57569593]
[1645158683064,0.88585345,2899.4,2899.0,1.43825593]
[1645158683263,0.88585345,2899.3,2899.1,0.57569593]
[1645158683463,1.72511,2899.8,2899.1,0.57569593]
[1645158683663,0.84326057,2899.5,2899.2,0.57569593]
[1645158683867,0.88590663,2899.4,2899.3,0.57569593]
[1645158684264,0.88590663,2899.4,2899.0,0.57569593]
[1645158684466,0.88590663,2899.4,2899.1,0.57569593]
[1645158684665,0.88590663,2899.4,2899.2,0.57569593]
[1645158685472,0.88590663,2899.4,2899.3,0.57569593]
[1645158685868,0.88590663,2899.4,2899.0,0.57569593]
[1645158686068,0.88590663,2899.4,2899.1,0.57569593]
[1645158686268,0.88590663,2899.4,2899.2,0.57569593]
[1645158686469,0.88590663,2899.4,2899.0,0.57569593]
[1645158686712,0.88590663,2899.4,2899.1,0.57569593]
[1645158686917,0.88590663,2899.4,2899.2,0.57569593]
[1645158687120,0.88590663,2899.4,2899.3,0.57569593]
[1645158687321,0.88590663,2899.4,2899.0,0.57569593]
[1645158688021,1.74863663,2899.4,2899.0,0.57569593]
[1645158688215,1.74863663,2899.4,2899.1,0.57569593]
[1645158688216,1.74862663,2899.3,2899.1,0.57569593]
[1645158688417,1.74862663,2899.3,2898.9,0.00447855]
[1645158688418,0.88590663,2899.2,2898.9,0.00447855]
[1645158688616,0.88590663,2899.2,2899.0,0.57386776]
[1645158688816,0.84326057,2899.5,2899.0,0.57386776]
[1645158689017,0.88548573,2899.4,2899.0,0.57386776]
[1645158689517,2.61080573,2899.4,2899.1,0.57386776]
[1645158689721,0.88548573,2899.3,2899.2,0.57386776]
[1645158690118,0.88548573,2899.3,2899.0,0.57386776]
[1645158690324,0.88548573,2899.2,2899.1,0.57386776]
[1645158690565,0.88548573,2899.4,2898.9,0.57834633]
[1645158690761,0.86269,2899.3,2899.0,0.57386776]
[1645158690963,0.88548573,2899.2,2899.0,0.57386776]
[1645158691765,0.86269,2899.3,2899.1,0.57386776]
[1645158691966,0.86269,2899.3,2899.2,1.26835686]
[1645158692166,1.74878222,2899.3,2899.2,1.26835686]
[1645158692366,0.88609222,2899.3,2899.2,1.26835686]
[1645158692566,0.83609222,2899.3,2899.2,1.26835686]
[1645158693565,2.56860057,2899.5,2899.2,1.26835686]
[1645158693767,2.56860057,2899.5,2899.2,0.6944891]
[1645158693967,2.56113956,2899.5,2899.2,0.6944891]
[1645158694714,3.42375956,2899.5,2899.2,0.6944891]
[1645158695115,1.70595057,2899.5,2899.2,0.6944891]
[1645158695315,0.84326057,2899.5,2899.2,0.6944891]
[1645158697524,0.65632938,2899.9,2899.2,0.6944891]
[1645158697725,4.15632938,2900.0,2899.2,1.5569991]
[1645158698564,5.88125938,2900.0,2899.2,1.5569991]
[1645158698762,0.65632938,2899.9,2899.2,1.5569991]
[1645158698962,1.06643633,2899.6,2899.2,1.5569991]
[1645158701468,1.06643633,2899.6,2899.3,0.86246]
[1645158701734,1.06643633,2899.6,2899.4,0.86245]
[1645158703339,1.06643633,2899.6,2899.3,0.8625]
[1645158705143,9.65632938,2899.9,2899.3,0.8625]
[1645158705974,3.5,2899.8,2899.3,1.72495]
[1645158706278,0.90903117,2899.4,2899.2,0.6444891]
[1645158708182,1.77169117,2899.4,2899.2,0.6444891]
[1645158709817,4.15632938,2899.3,2899.2,0.6444891]
[1645158710019,5.01904938,2899.3,2899.2,0.6444891]
[1645158712225,0.90903117,2899.4,2899.2,0.6444891]
[1645158712226,1.56536055,2899.4,2899.2,0.6444891]
[1645158712526,0.88633037,2899.3,2899.2,0.6444891]
[1645158712725,0.88633037,2899.3,2899.2,1.22023054]
[1645158713169,1.54265975,2899.3,2899.2,0.6444891]
[1645158713370,5.04265975,2899.3,2899.2,0.6444891]
[1645158714075,5.5,2899.2,2898.9,0.00298377]
[1645158714271,26.60158037,2899.1,2898.9,0.00298377]
[1645158714471,26.60158037,2899.1,2898.9,0.00123997]
[1645158714472,5.5981596,2899.0,2898.9,0.00123997]
[1645158714670,5.8981596,2899.0,2898.9,0.00436705]
[1645158714869,6.8981596,2899.0,2898.9,0.00436705]
[1645158715272,7.55352266,2899.0,2898.9,0.00436705]
[1645158715471,2.70464343,2899.0,2898.9,0.00436705]
[1645158715671,2.70464343,2899.0,2898.9,0.00123997]
[1645158715672,1.74928037,2899.0,2898.9,0.00123997]
[1645158716172,5.54928037,2899.0,2898.9,0.00123997]
[1645158716370,5.84928037,2899.0,2898.9,0.00123997]
[1645158718124,6.50464343,2899.0,2898.9,0.00123997]
[1645158718324,5.84928037,2899.0,2898.9,0.00123997]
[1645158718523,5.54928037,2899.0,2898.9,0.00123997]
[1645158718924,5.84928037,2899.0,2898.9,0.00123997]
[1645158719726,5.54928037,2899.0,2898.9,0.00123997]
[1645158725536,2.04928037,2899.0,2898.9,0.00123997]
[1645158727441,26.72928037,2899.0,2898.9,3.997e-05]
[1645158727644,0.86296,2898.8,2898.2,0.00378957]
[1645158727848,0.86296,2898.8,2898.4,0.01140411]
[1645158727849,2.12193037,2898.7,2898.4,0.01140411]
[1645158728076,0.88633037,2898.6,2898.4,0.01140411]
[1645158728276,1.18633037,2898.6,2898.4,0.01140411]
[1645158728480,1.88849882,2898.5,2898.4,0.01140411]
[1645158728678,2.75140882,2898.5,2898.4,0.01140411]
[1645158728877,1.88849882,2898.5,2898.1,0.0043052]
[1645158729080,0.88633037,2898.4,2898.2,0.54244261]
[1645158729276,0.88633037,2898.4,2898.1,0.0043052]
[1645158729677,1.74923037,2898.4,2898.1,0.0043052]
[1645158729877,0.88633037,2898.3,2898.1,0.0043052]
[1645158730878,0.86303,2898.2,2898.1,0.0043052]
[1645158731076,2.04936037,2898.2,2898.1,0.0043052]
[1645158731921,0.0019457,2897.9,2897.6,0.01298482]
[1645158732127,0.0019457,2897.9,2897.7,0.54216192]
[1645158732128,0.86307,2897.8,2897.7,0.54216192]
[1645158732329,0.0019457,2897.9,2897.7,0.54595149]
[1645158734123,0.0019457,2897.9,2897.7,0.55456189]
[1645158734323,0.0019457,2897.9,2897.8,0.54216192]
[1645158734523,0.0019457,2897.9,2897.8,0.54595149]
[1645158735122,0.0019457,2897.9,2897.8,0.55456189]
[1645158736374,0.0019457,2897.9,2897.8,0.01239997]
[1645158736572,0.0019457,2897.9,2897.8,0.0086104]
[1645158740227,0.0019457,2897.9,2897.8,0.55026936]
[1645158740426,0.0019457,2897.9,2897.8,0.01239997]
[1645158740627,0.0019457,2897.9,2897.8,0.0086104]
[1645158741028,0.0019457,2897.9,2897.8,0.55029742]
[1645158741227,0.0019457,2897.9,2897.8,0.55408699]
[1645158741627,0.0019457,2897.9,2897.8,0.01239997]
[1645158741827,0.0019457,2897.9,2897.8,0.55027836]
[1645158742029,0.0019457,2897.9,2897.8,0.55406793]
[1645158744378,0.0019457,2897.9,2897.8,0.01239997]
[1645158744681,0.0019457,2897.9,2897.8,0.55050181]
[1645158744879,0.0019457,2897.9,2897.8,0.55429138]
[1645158745681,0.0019457,2897.9,2897.8,0.01239997]
[1645158745879,0.0019457,2897.9,2897.8,0.0086104]
[1645158747449,0.0019457,2897.9,2897.8,0.55091095]
[1645158750971,0.0019457,2897.9,2897.8,1.67817774]
[1645158751779,0.0019457,2897.9,2897.8,5.73935594]
[1645158751978,0.138091,2898.8,2898.6,0.0014494]
[1645158752178,0.138091,2898.8,2898.7,1.09387034]
[1645158752578,1.05034864,2898.8,2898.7,1.63617089]
[1645158753878,0.138091,2898.8,2898.7,1.63617089]
[1645158755529,0.91046618,2899.4,2898.7,1.63617089]
[1645158755735,0.90915585,2899.3,2898.8,0.54230055]
[1645158756632,0.90915585,2899.2,2898.8,0.54230055]
[1645158756833,3.8347445,2899.7,2898.8,0.54230055]
[1645158756834,0.90915585,2899.1,2898.8,0.54230055]
[1645158757035,0.90915585,2899.0,2898.8,0.54230055]
[1645158757236,3.8347445,2899.7,2898.8,0.54230055]
[1645158757437,0.90910017,2899.6,2898.9,0.86248]
[1645158757638,10.40033178,2899.9,2899.0,0.54230055]
[1645158757639,0.90910017,2899.5,2899.0,0.54230055]
[1645158757838,0.90910017,2899.8,2899.0,1.03730055]
[1645158758089,0.90910017,2899.8,2899.1,0.54230055]
[1645158758392,0.90910017,2899.8,2899.3,0.86236]
[1645158758588,0.90910017,2899.8,2899.4,1.40462055]
[1645158758891,0.90910017,2899.8,2899.2,0.6552]
[1645158759993,2.63420017,2899.8,2898.8,0.86255]
[1645158760192,0.90910017,2899.7,2898.9,0.54830217]
[1645158761195,0.90910017,2899.7,2898.9,1.41081217]
[1645158761397,11.35801669,2899.9,2899.0,0.54830217]
[1645158761398,0.90910017,2899.6,2899.0,0.54830217]
[1645158761596,0.90910017,2899.5,2899.0,0.54830217]
[1645158761835,2.5,2899.1,2899.0,0.54830217]
[1645158762446,9.84196219,2899.9,2899.0,0.54830217]
[1645158762640,0.90772204,2899.8,2899.2,0.86241]
[1645158762938,0.90772204,2899.8,2899.3,0.54830217]
[1645158763737,0.90772204,2899.8,2899.2,0.86241]
[1645158763936,0.90772204,2899.8,2899.0,0.86247]
[1645158764142,0.90772204,2899.8,2899.1,0.54761541]
[1645158764337,2.5,2899.1,2898.8,1.1692]
[1645158764539,2.5,2899.1,2898.9,0.54747783]
[1645158765036,2.5,2899.1,2899.0,0.54747783]
[1645158765237,2.5,2899.1,2898.8,0.54747783]
[1645158765483,2.5,2899.1,2898.9,0.54747783]
[1645158765684,2.5,2899.1,2899.0,0.54747783]
[1645158766083,2.5,2899.1,2898.8,0.54747783]
[1645158766281,2.5,2899.1,2898.9,0.54747783]
[1645158766483,2.5,2899.1,2899.0,0.54747783]
[1645158767686,13.34196219,2899.9,2899.1,0.86245]
[1645158767886,0.90673745,2899.8,2899.1,0.86245]
[1645158768084,1.20673745,2899.8,2899.1,0.86245]
[1645158768283,0.90673745,2899.7,2899.1,0.86245]
[1645158768485,0.90673745,2899.8,2899.1,0.86245]
[1645158769624,0.90673745,2899.8,2899.3,0.86244]
[1645158769825,0.90673745,2899.8,2899.4,0.86236]
[1645158770626,0.90673745,2899.8,2899.4,1.72471]
[1645158771230,0.90673745,2899.8,2899.4,2.58706]
[1645158771428,0.90673745,2899.8,2899.4,1.72471]
[1645158771836,0.90673745,2899.8,2899.4,0.86236]
[1645158772032,0.90673745,2899.8,2899.3,0.64660531]
[1645158772232,0.90673745,2899.8,2899.2,1.72469]
[1645158772533,0.90673745,2899.8,2899.3,0.86237]
[1645158772732,0.90673745,2899.8,2899.4,0.86236]
[1645158773178,0.90673745,2899.8,2899.2,1.72469]
[1645158774881,0.90673745,2899.8,2899.3,0.86238]
[1645158775081,0.90673745,2899.8,2899.4,0.86237]
[1645158775481,0.90673745,2899.8,2899.6,1.13939236]
[1645158777858,9.0,2899.9,2899.6,2.68583236]
[1645158778054,9.0,2899.9,2899.7,0.8622]
[1645158779155,9.0,2899.9,2899.8,0.86223]
[1645158780164,0.00497442,2900.7,2900.0,5.0]
[1645158780359,3.35539373,2901.3,2900.2,1.72387]
[1645158780360,0.88664531,2900.6,2900.2,1.72387]
[1645158780588,0.88664531,2900.5,2900.3,1.15242356]
[1645158780787,0.00497442,2900.5,2900.3,1.15242356]
[1645158780988,0.00497442,2901.0,2900.3,1.15242356]
[1645158781191,0.88675762,2900.9,2900.2,0.86194]
[1645158781390,0.88675762,2900.9,2900.2,1.724]
[1645158781391,0.00497442,2900.8,2900.2,1.724]
[1645158781593,0.88675762,2900.7,2900.4,0.86193]
[1645158781791,3.5090445,2901.4,2900.4,0.86193]
[1645158781792,0.00497442,2901.0,2900.4,0.86193]
[1645158781991,0.00497442,2900.7,2900.5,0.495]
[1645158782190,0.00497442,2901.1,2900.5,0.495]
[1645158782390,0.00497442,2900.8,2900.5,0.495]
[1645158782591,4.9986445,2901.6,2900.7,1.19336889]
[1645158782592,0.00497442,2901.4,2900.7,1.19336889]
[1645158782791,0.00497442,2900.9,2900.7,1.19336889]
[1645158783090,0.00497442,2901.4,2900.7,1.19336889]
[1645158783290,0.00636881,2901.2,2900.7,1.19336889]
[1645158783492,0.88618687,2901.1,2900.7,1.19336889]
[1645158783691,0.00636881,2901.2,2900.8,0.86186]
[1645158783890,0.88618687,2901.1,2900.8,1.72372]
[1645158784095,0.88618687,2901.1,2900.8,0.86186]
[1645158784324,0.00497442,2901.0,2900.8,0.86186]
[1645158784528,0.88618687,2900.9,2900.8,0.86186]
[1645158785424,0.88618687,2901.3,2900.8,0.86186]
[1645158785625,0.00302239,2901.0,2900.8,0.86186]
[1645158786225,0.89418368,2901.0,2900.9,0.01227371]
[1645158786424,0.88920926,2901.0,2900.9,0.01227371]
[1645158786629,0.89116129,2901.0,2900.9,0.01227371]
[1645158786835,0.00497442,2901.0,2900.9,0.01227371]
[1645158787031,0.00302234,2901.1,2901.0,0.86178]
[1645158787732,0.88528294,2901.2,2901.0,0.86178]
[1645158787981,0.89327964,2901.2,2901.0,0.86178]
[1645158788178,0.0079967,2901.2,2901.0,0.86178]
[1645158788382,0.0079967,2901.2,2901.0,1.72366]
[1645158788383,0.00302228,2901.2,2901.0,1.72366]
[1645158789082,0.00497442,2901.4,2901.0,0.86178]
[1645158789083,0.88527908,2901.3,2901.0,0.86178]
[1645158789286,0.00302225,2901.2,2901.0,0.86178]
[1645158789484,0.00799667,2901.2,2901.0,0.86178]
[1645158789684,0.00302225,2901.2,2901.0,0.86178]
[1645158789883,0.00302225,2901.2,2901.0,1.72368]
[1645158790282,0.00497442,2901.6,2901.1,0.86185]
[1645158790484,0.00303749,2901.2,2901.1,0.86185]
[1645158790883,0.00303749,2901.2,2901.1,1.72371]
[1645158791286,0.00303749,2901.2,2901.1,1.74798388]
[1645158791485,0.00497442,2901.6,2901.3,0.8618]
[1645158791936,0.88508006,2901.5,2901.3,0.8618]
[1645158792132,0.88508006,2901.5,2901.3,0.15606494]
[1645158792333,0.00497442,2901.5,2901.3,0.15606494]
[1645158792533,0.00497442,2901.8,2901.3,0.15606494]
[1645158792735,0.85622484,2901.7,2901.3,0.15606494]
[1645158793033,0.00303732,2901.5,2901.3,0.15606494]
[1645158793438,0.85926216,2901.5,2901.3,0.15606494]
[1645158793734,0.00497442,2901.5,2901.3,0.15606494]
[1645158793932,0.85653434,2901.4,2901.3,0.15606494]
[1645158794135,0.00303629,2901.5,2901.3,1.01786494]
[1645158794334,0.00303629,2901.5,2901.4,1.72318]
[1645158794537,0.00303629,2901.5,2901.4,2.21818]
[1645158794934,0.00497442,2901.7,2901.4,2.21818]
[1645158795136,0.00497442,2902.4,2901.8,0.95206859]
[1645158795336,0.86096467,2902.3,2901.9,0.8616]